bitfinex/quotes_BTCUSD_20250512
["timestamp","ask_amount","ask_price","bid_price","bid_amount"]
[1747048051263,0.00588,104590.0,104580.0,2.05781096]
[1747048051657,0.00588,104590.0,104580.0,2.03911096]
[1747048051856,0.00488,104590.0,104580.0,2.03911096]
[1747048052615,0.00288,104590.0,104580.0,1.55756936]
[1747048052814,0.00288,104590.0,104580.0,2.04011096]
[1747048053066,0.00288,104590.0,104580.0,2.45741096]
[1747048054300,0.00288,104590.0,104580.0,2.19812296]
[1747048054724,0.00288,104590.0,104580.0,2.47148696]
[1747048055255,0.00288,104590.0,104580.0,2.30547318]
[1747048055691,0.04068,104590.0,104580.0,2.20766618]
[1747048055905,0.04068,104590.0,104580.0,2.58921118]
[1747048056532,0.02158,104590.0,104580.0,2.58921118]
[1747048056997,0.02158,104590.0,104580.0,2.44494918]
[1747048057222,0.03114041,104590.0,104580.0,2.44494918]
[1747048057390,0.04108,104590.0,104580.0,2.44494918]
[1747048058906,0.05064041,104590.0,104580.0,2.44494918]
[1747048059114,0.04108,104590.0,104580.0,2.44494918]
[1747048061832,0.26098492,104590.0,104580.0,1.36238115]
[1747048062048,0.26098565,104590.0,104580.0,1.76664889]
[1747048062225,0.26098565,104590.0,104580.0,1.93447449]
[1747048062433,0.25142497,104590.0,104580.0,2.33447449]
[1747048063659,0.24186401,104590.0,104580.0,2.3249128]
[1747048064071,0.25142487,104590.0,104580.0,2.3249128]
[1747048064271,0.25142487,104590.0,104580.0,2.33447449]
[1747048065042,0.24186401,104590.0,104580.0,1.98479298]
[1747048065272,0.24186401,104590.0,104580.0,0.73136782]
[1747048065492,0.23230287,104590.0,104580.0,0.1156]
[1747048065703,0.32815717,104590.0,104580.0,0.1156]
[1747048066130,0.32815717,104590.0,104580.0,0.27386391]
[1747048066362,0.23230287,104590.0,104580.0,0.43212782]
[1747048066972,0.23230287,104590.0,104580.0,0.27386391]
[1747048067327,0.23230287,104590.0,104580.0,0.35687231]
[1747048072101,0.23230287,104590.0,104580.0,0.1156]
[1747048078266,0.23230287,104590.0,104580.0,0.35687231]
[1747048080913,0.23230287,104590.0,104580.0,0.24327231]
[1747048081874,0.23230287,104590.0,104580.0,0.002]
[1747048083989,0.23230287,104590.0,104580.0,0.24327231]
[1747048085424,0.23230287,104590.0,104580.0,0.002]
[1747048091162,0.23230287,104590.0,104580.0,0.16035676]
[1747048093304,0.2390069,104590.0,104580.0,0.16035676]
[1747048094329,0.2390069,104590.0,104580.0,0.35159791]
[1747048094546,0.2390069,104590.0,104580.0,0.31871352]
[1747048095125,0.2390069,104590.0,104580.0,0.16035676]
[1747048096345,0.2390069,104590.0,104580.0,0.15835676]
[1747048097397,0.2390069,104590.0,104580.0,0.27151676]
[1747048097835,0.2390069,104590.0,104580.0,0.15835676]
[1747048098300,0.02868781,104570.0,104560.0,1.23020093]
[1747048098547,0.21038492,104570.0,104560.0,0.43307658]
[1747048098762,0.21038492,104570.0,104560.0,0.01677658]
[1747048098763,0.24778492,104570.0,104560.0,0.01677658]
[1747048099183,0.22955357,104550.0,104540.0,1.21850244]
[1747048099392,0.22955357,104550.0,104540.0,1.00123239]
[1747048099605,0.22955357,104550.0,104540.0,1.31794591]
[1747048099818,0.22955357,104550.0,104540.0,0.87794591]
[1747048100033,0.2199896,104550.0,104540.0,0.85894628]
[1747048100245,0.2199896,104550.0,104540.0,1.21361247]
[1747048100480,0.2199896,104550.0,104540.0,0.15840563]
[1747048100481,0.23816083,104550.0,104540.0,0.15840563]
[1747048100712,0.23816083,104550.0,104540.0,0.38776563]
[1747048100919,0.23816083,104550.0,104540.0,0.72776563]
[1747048101142,0.23816083,104550.0,104540.0,0.88612239]
[1747048101803,0.23816083,104550.0,104540.0,0.88608239]
[1747048102011,0.23816083,104550.0,104540.0,0.88908239]
[1747048102458,0.23816083,104550.0,104540.0,0.90395007]
[1747048103273,0.22859603,104550.0,104540.0,0.90395007]
[1747048104758,0.19129603,104550.0,104540.0,1.09526439]
[1747048104970,0.22955357,104550.0,104540.0,1.16779024]
[1747048105178,0.23911837,104550.0,104540.0,1.17735549]
[1747048105379,0.22955431,104550.0,104540.0,1.17735549]
[1747048105775,0.01912859,104550.0,104540.0,1.43156563]
[1747048106151,0.00956416,104550.0,104540.0,1.43156563]
[1747048106376,0.0191285,104550.0,104540.0,1.43156563]
[1747048106607,0.0191285,104550.0,104540.0,1.42200074]
[1747048106828,0.02869311,104550.0,104540.0,1.27320905]
[1747048107386,0.02869302,104550.0,104540.0,1.43919907]
[1747048108367,0.03825763,104550.0,104540.0,1.43919907]
[1747048108554,0.00956416,104550.0,104540.0,1.43919907]
[1747048108763,0.01912859,104550.0,104540.0,1.43919907]
[1747048108975,0.0286932,104550.0,104540.0,1.43919907]
[1747048109183,0.01912859,104550.0,104540.0,1.43919907]
[1747048109391,0.0191285,104550.0,104540.0,1.43919907]
[1747048109615,0.21040522,104560.0,104550.0,0.59978933]
[1747048109812,0.21996864,104560.0,104550.0,1.17834735]
[1747048110049,0.23909567,104560.0,104550.0,1.17834735]
[1747048110257,0.22953234,104560.0,104550.0,1.17834735]
[1747048110685,0.21996892,104560.0,104550.0,1.16878301]
[1747048110897,0.21996892,104560.0,104550.0,1.16978301]
[1747048111325,0.21996892,104560.0,104550.0,1.18134735]
[1747048111744,0.21996892,104560.0,104550.0,1.17178301]
[1747048112818,0.21040531,104560.0,104550.0,1.12241867]
[1747048113044,0.23914161,104560.0,104550.0,0.8715021]
[1747048113266,0.23914161,104560.0,104550.0,0.88106681]
[1747048113495,0.22024161,104560.0,104550.0,0.89063142]
[1747048113752,0.20084161,104560.0,104550.0,0.90976037]
[1747048114164,0.20084161,104560.0,104550.0,0.89063142]
[1747048115033,0.20084161,104560.0,104550.0,0.90019594]
[1747048115632,0.22044161,104560.0,104550.0,0.90019594]
[1747048116001,0.22044161,104560.0,104550.0,0.88106681]
[1747048116205,0.23964161,104560.0,104550.0,0.88106681]
[1747048116413,0.23007773,104560.0,104550.0,0.99422681]
[1747048117280,0.23007773,104560.0,104550.0,0.9846621]
[1747048117491,0.23007773,104560.0,104550.0,0.9942269]
[1747048117946,0.23007773,104560.0,104550.0,1.00379161]
[1747048118620,0.19127773,104560.0,104550.0,1.2547079]
[1747048118994,0.21047773,104560.0,104550.0,1.2547079]
[1747048119186,0.22997773,104560.0,104550.0,1.01335613]
[1747048119675,0.22997773,104560.0,104550.0,1.2547079]
[1747048121133,0.19127773,104560.0,104550.0,1.01335613]
[1747048121359,0.19127773,104560.0,104550.0,1.2547079]
[1747048122273,0.19127773,104560.0,104550.0,1.24514338]
[1747048122483,0.22957773,104560.0,104550.0,1.24514338]
[1747048123880,0.22957773,104560.0,104550.0,0.9942269]
[1747048124278,0.22957773,104560.0,104550.0,1.00379161]
[1747048124698,0.22957773,104560.0,104550.0,0.68020607]
[1747048124926,0.22957773,104560.0,104550.0,0.81067177]
[1747048125452,0.22957773,104560.0,104550.0,1.0019678]
[1747048125615,0.22957773,104560.0,104550.0,0.81067177]
[1747048126859,0.22957773,104560.0,104550.0,0.11616]
[1747048127057,0.22957773,104560.0,104550.0,0.22932]
[1747048127290,0.22957773,104560.0,104550.0,0.47067177]
[1747048127826,0.22957773,104560.0,104550.0,0.46867177]
[1747048129180,0.22957773,104560.0,104550.0,0.46767177]
[1747048129393,0.22957773,104560.0,104550.0,0.3847183]
[1747048130990,0.21027773,104560.0,104550.0,0.5431166]
[1747048131263,0.21027773,104560.0,104550.0,0.3847183]
[1747048131407,0.22937773,104560.0,104550.0,0.3847183]
[1747048137078,0.04766315,104560.0,104550.0,0.75354177]
[1747048137282,0.22953188,104560.0,104550.0,0.75354195]
[1747048137517,0.21996873,104560.0,104550.0,0.76310638]
[1747048137723,0.21040531,104560.0,104550.0,0.75354195]
[1747048137977,0.20084161,104560.0,104550.0,0.75354195]
[1747048138379,0.20084161,104560.0,104550.0,0.58557913]
[1747048138589,0.21994161,104560.0,104550.0,0.59514384]
[1747048139089,0.23954161,104560.0,104550.0,0.59514384]
[1747048139701,0.22953225,104560.0,104550.0,0.86852521]
[1747048139912,0.26046892,104560.0,104550.0,0.67186863]
[1747048140130,0.26046892,104560.0,104550.0,0.2715583]
[1747048140348,0.25090531,104560.0,104550.0,0.3847183]
[1747048140552,0.25090531,104560.0,104550.0,0.11316]
[1747048140753,0.25090531,104560.0,104550.0,0.3847183]
[1747048140960,0.25762428,104560.0,104550.0,0.3847183]
[1747048141367,0.25762428,104560.0,104550.0,0.46773655]
[1747048142226,0.25762428,104560.0,104550.0,0.90044913]
[1747048142404,0.25762428,104560.0,104550.0,0.91001393]
[1747048142557,0.25762428,104560.0,104550.0,0.91957864]
[1747048142798,0.25762428,104560.0,104550.0,0.92914325]
[1747048143050,0.25090531,104560.0,104550.0,0.92914325]
[1747048143265,0.21040531,104560.0,104550.0,0.92914325]
[1747048143493,0.21040531,104560.0,104550.0,0.92910325]
[1747048143758,0.22034161,104560.0,104550.0,0.91953864]
[1747048143995,0.02868981,104560.0,104550.0,1.05372088]
[1747048144433,0.03825342,104560.0,104550.0,1.05372088]
[1747048144837,0.02868981,104560.0,104550.0,1.05372088]
[1747048145044,0.04781721,104560.0,104550.0,0.78354036]
[1747048145271,0.04701935,104560.0,104550.0,0.79310452]
[1747048145477,0.04701926,104560.0,104550.0,0.79310452]
[1747048145663,0.04701926,104560.0,104550.0,1.03452107]
[1747048146335,0.04701917,104560.0,104550.0,1.03452107]
[1747048146582,0.04701908,104560.0,104550.0,1.05382107]
[1747048147240,0.04701972,104560.0,104550.0,1.05382107]
[1747048147454,0.02789241,104560.0,104550.0,1.05382107]
[1747048147658,0.04701972,104560.0,104550.0,1.07372107]
[1747048148734,0.22873412,104560.0,104550.0,0.56142381]
[1747048148949,0.22873412,104560.0,104550.0,1.02495691]
[1747048150370,0.23829791,104560.0,104550.0,1.02495691]
[1747048150591,0.22953271,104560.0,104550.0,1.02495691]
[1747048151459,0.2199691,104560.0,104550.0,1.01539266]
[1747048151687,0.2199691,104560.0,104550.0,1.02495709]
[1747048153080,0.01912657,104560.0,104550.0,1.39502125]
[1747048153289,0.01912648,104560.0,104550.0,1.41462125]
[1747048153705,0.02869,104560.0,104550.0,1.41462125]
[1747048153918,0.0382537,104560.0,104550.0,1.41462125]
[1747048154554,0.0382537,104560.0,104550.0,1.39502125]
[1747048155172,0.22953143,104560.0,104550.0,1.22314343]
[1747048155375,0.25100495,104560.0,104550.0,0.80769655]
[1747048155578,0.25100495,104560.0,104550.0,1.00855729]
[1747048155792,0.25100495,104560.0,104550.0,0.77271258]
[1747048156019,0.25100495,104560.0,104540.0,1.01384742]
[1747048156020,0.25012498,104550.0,104540.0,1.01384742]
[1747048156206,0.25012498,104550.0,104540.0,1.03297875]
[1747048157061,0.24056064,104550.0,104540.0,0.8225331]
[1747048157271,0.24056064,104550.0,104540.0,0.8245331]
[1747048157484,0.24056064,104550.0,104540.0,0.8255331]
[1747048157915,0.24056064,104550.0,104540.0,0.91329295]
[1747048158138,0.24056064,104550.0,104540.0,1.01680742]
[1747048158778,0.24056064,104550.0,104540.0,1.02637295]
[1747048161024,0.24056064,104550.0,104540.0,1.03593839]
[1747048163692,0.24056064,104550.0,104540.0,1.04550374]
[1747048164102,0.24056064,104550.0,104540.0,1.05506899]
[1747048164349,0.20086064,104550.0,104540.0,1.05506899]
[1747048164540,0.24066064,104550.0,104540.0,1.05506899]
[1747048164968,0.24066064,104550.0,104540.0,1.06463415]
[1747048165163,0.24066064,104550.0,104540.0,1.05506899]
[1747048165791,0.24066064,104550.0,104540.0,1.06463415]
[1747048169396,0.25022498,104550.0,104540.0,1.06463415]
[1747048169547,0.26935449,104550.0,104540.0,1.14004802]
[1747048169756,0.26935449,104550.0,104540.0,0.80408691]
[1747048169958,0.26935449,104550.0,104540.0,1.12091779]
[1747048170165,0.26935449,104550.0,104540.0,1.13048295]
[1747048170767,0.26935449,104550.0,104540.0,1.12091779]
[1747048171183,0.25979015,104550.0,104540.0,1.12091779]
[1747048171685,0.25979015,104550.0,104540.0,1.13048295]
[1747048171952,0.25979015,104550.0,104540.0,1.11135254]
[1747048172151,0.25979015,104550.0,104540.0,1.13048295]
[1747048172573,0.05892932,104550.0,104540.0,1.13048295]
[1747048172779,0.25022535,104550.0,104540.0,1.13048295]
[1747048172991,0.05892932,104550.0,104540.0,1.14004802]
[1747048173225,0.25022535,104550.0,104540.0,1.14004802]
[1747048173640,0.25979015,104550.0,104540.0,1.14004802]
[1747048174493,0.25979015,104550.0,104540.0,1.13048295]
[1747048177961,0.25979015,104550.0,104540.0,1.11135254]
[1747048178434,0.25979015,104550.0,104540.0,1.06613822]
[1747048178771,0.25979015,104550.0,104540.0,0.75643599]
[1747048178955,0.25979015,104550.0,104540.0,0.76600124]
[1747048179156,0.25979015,104550.0,104540.0,0.7755664]
[1747048179408,0.25022535,104550.0,104540.0,0.78513147]
[1747048179611,0.25979015,104550.0,104540.0,0.78513147]
[1747048180016,0.25979015,104550.0,104540.0,0.7755664]
[1747048181319,0.06849366,104550.0,104540.0,0.79945296]
[1747048181526,0.26935449,104550.0,104540.0,0.78988789]
[1747048182213,0.05892895,104550.0,104540.0,0.79945296]
[1747048182810,0.25978969,104550.0,104540.0,0.79945296]
[1747048184928,0.06849366,104550.0,104540.0,0.79945296]
[1747048185088,0.25978969,104550.0,104540.0,0.78988789]
[1747048185286,0.05892895,104550.0,104540.0,0.79945296]
[1747048185693,0.05892895,104550.0,104540.0,1.13945296]
[1747048186292,0.06849366,104550.0,104540.0,1.13945296]
[1747048186925,0.02869366,104550.0,104540.0,1.13945296]
[1747048188099,0.04839366,104550.0,104540.0,1.13945296]
[1747048188295,0.24932498,104550.0,104540.0,0.91329296]
[1747048188542,0.25888978,104550.0,104540.0,1.13929296]
[1747048188743,0.25888978,104550.0,104540.0,1.12972789]
[1747048190679,0.25888978,104550.0,104540.0,1.12016273]
[1747048194521,0.25888978,104550.0,104540.0,1.11059784]
[1747048194733,0.25888978,104550.0,104540.0,1.11059793]
[1747048195374,0.24932544,104550.0,104540.0,0.55820152]
[1747048195579,0.23976083,104550.0,104540.0,1.11055802]
[1747048196981,0.23976083,104550.0,104540.0,1.12012355]
[1747048197826,0.23976083,104550.0,104540.0,0.01732149]
[1747048198035,0.23976083,104550.0,104540.0,0.24328149]
[1747048198243,0.23976083,104550.0,104540.0,0.40169693]
[1747048199340,0.23976083,104550.0,104540.0,0.56011237]
[1747048200188,0.23976083,104550.0,104540.0,0.52546669]
[1747048200424,0.23976083,104550.0,104540.0,0.76099231]
[1747048200642,0.01912877,104550.0,104540.0,0.78968825]
[1747048200863,0.22955357,104550.0,104540.0,0.79925332]
[1747048201081,0.26805357,104550.0,104540.0,0.79925332]
[1747048201253,0.03825735,104550.0,104540.0,0.79925332]
[1747048201457,0.23911809,104550.0,104540.0,0.79925332]
[1747048201630,0.04782206,104550.0,104540.0,0.79925332]
[1747048201834,0.03825735,104550.0,104540.0,0.79925332]
[1747048202088,0.23911809,104550.0,104540.0,0.79925332]
[1747048202549,0.02869247,104550.0,104540.0,1.08756391]
[1747048202736,0.0382569,104550.0,104540.0,1.08756391]
[1747048202959,0.0382569,104550.0,104540.0,0.92914847]
[1747048203177,0.02869247,104550.0,104540.0,1.08756391]
[1747048203378,0.07480996,104560.0,104550.0,0.21998933]
[1747048203613,0.23625084,104560.0,104550.0,0.52725605]
[1747048203836,0.22953161,104560.0,104550.0,0.52725605]
[1747048204066,0.21996846,104560.0,104550.0,0.52725605]
[1747048204313,0.21040504,104560.0,104550.0,0.53682066]
[1747048204957,0.21040504,104560.0,104550.0,0.52725623]
[1747048205580,0.23977867,104570.0,104560.0,0.19127773]
[1747048205804,0.01828165,104570.0,104560.0,1.35890137]
[1747048206046,0.23970396,104570.0,104560.0,0.85305203]
[1747048206273,0.25880396,104570.0,104560.0,0.88275088]
[1747048206502,0.25208473,104570.0,104560.0,0.88275088]
[1747048206971,0.25308473,104570.0,104560.0,0.88275088]
[1747048207128,0.25508473,104570.0,104560.0,0.88275088]
[1747048207617,0.25508473,104570.0,104560.0,0.56592]
[1747048207798,0.25508473,104570.0,104560.0,0.88275088]
[1747048208981,0.25508473,104570.0,104560.0,0.86250105]
[1747048209183,0.25508473,104570.0,104560.0,0.50967686]
[1747048209399,0.25508473,104570.0,104560.0,0.43417523]
[1747048210095,0.25508473,104570.0,104560.0,0.46724925]
[1747048210728,0.25508473,104570.0,104560.0,0.46226769]
[1747048210927,0.25508473,104570.0,104560.0,0.44201786]
[1747048211593,0.00956397,104550.0,104540.0,0.26446667]
[1747048211806,0.02869311,104550.0,104540.0,1.08331968]
[1747048212017,0.02869275,104550.0,104540.0,1.61777766]
[1747048212467,0.01912841,104550.0,104540.0,1.61777766]
[1747048212846,0.02869284,104550.0,104540.0,1.61777766]
[1747048213058,0.00956416,104550.0,104540.0,1.61064552]
[1747048213262,0.01912841,104550.0,104540.0,1.61064552]
[1747048213712,0.00956416,104550.0,104540.0,1.61064552]
[1747048213861,0.0191285,104550.0,104540.0,1.61064552]
[1747048214058,0.00956416,104550.0,104540.0,1.61064552]
[1747048214261,0.01912859,104550.0,104540.0,1.59144552]
[1747048214458,0.0191285,104550.0,104540.0,1.59144552]
[1747048214906,0.03825763,104550.0,104540.0,1.32961627]
[1747048215117,0.26975366,104550.0,104540.0,1.32961627]
[1747048215310,0.26975366,104550.0,104540.0,1.329617]
[1747048215510,0.26975366,104550.0,104540.0,1.33918207]
[1747048215880,0.07845763,104550.0,104540.0,1.33918207]
[1747048217331,0.02869302,104550.0,104540.0,1.60057132]
[1747048217753,0.0191285,104550.0,104540.0,1.62067132]
[1747048218164,0.0191285,104550.0,104540.0,1.43577841]
[1747048218808,0.02869311,104550.0,104540.0,1.15424916]
[1747048219237,0.02869302,104550.0,104540.0,1.15424916]
[1747048219449,0.04889302,104550.0,104540.0,1.15424916]
[1747048219867,0.0191285,104550.0,104540.0,1.15424916]
[1747048220078,0.02869302,104550.0,104540.0,1.15424916]
[1747048221567,0.02869293,104550.0,104540.0,1.15424916]
[1747048222045,0.02869293,104550.0,104540.0,0.88447296]
[1747048222379,0.05755754,104550.0,104540.0,1.08535234]
[1747048222586,0.07735754,104550.0,104540.0,1.08535234]
[1747048222933,0.06779293,104550.0,104540.0,1.08535234]
[1747048223139,0.07735754,104550.0,104540.0,1.08535234]
[1747048223559,0.07735754,104550.0,104540.0,1.11030724]
[1747048224170,0.04799293,104550.0,104540.0,1.11030724]
[1747048224377,0.02869293,104550.0,104540.0,1.11030724]
[1747048225591,0.03825745,104550.0,104540.0,1.11030724]
[1747048226006,0.25921809,104550.0,104540.0,2.11030724]
[1747048226305,0.27871809,104550.0,104540.0,2.11030724]
[1747048226490,0.0191285,104550.0,104540.0,2.11030724]
[1747048226833,0.02869302,104550.0,104540.0,2.11030724]
[1747048227035,0.02869293,104550.0,104540.0,2.11030724]
[1747048227243,0.02869293,104550.0,104540.0,1.94715009]
[1747048227244,0.26905357,104550.0,104540.0,1.94715009]
[1747048227450,0.26905357,104550.0,104540.0,2.0791206]
[1747048227685,0.27861837,104550.0,104540.0,2.0791206]
[1747048228550,0.26905421,104550.0,104540.0,1.95671544]
[1747048228766,0.24992544,104550.0,104540.0,1.60928415]
[1747048228969,0.24992544,104550.0,104540.0,1.849545]
[1747048229576,0.24992544,104550.0,104540.0,1.0279549]
[1747048230258,0.24992544,104550.0,104540.0,1.3679549]
[1747048230460,0.24992544,104550.0,104540.0,1.3669549]
[1747048230821,0.24992544,104550.0,104540.0,1.3659549]
[1747048231031,0.34577974,104550.0,104540.0,1.001]
[1747048231237,0.35249231,104550.0,104540.0,1.001]
[1747048232209,0.35249231,104550.0,104540.0,1.003]
[1747048232612,0.35249231,104550.0,104540.0,1.0]
[1747048233061,0.35549231,104550.0,104540.0,1.0]
[1747048233942,0.59682156,104550.0,104540.0,1.0]
[1747048234154,0.62208855,104550.0,104540.0,1.0]
[1747048234372,0.85780855,104550.0,104540.0,1.0]
[1747048235024,0.83254156,104550.0,104540.0,1.0]
[1747048235458,0.83154156,104550.0,104540.0,1.0]
[1747048235641,0.59321231,104550.0,104540.0,1.0]
[1747048236081,0.59121231,104550.0,104540.0,1.0]
[1747048236293,0.46841231,104550.0,104540.0,1.0]
[1747048236484,0.47141231,104550.0,104540.0,1.0]
[1747048237372,0.35849231,104550.0,104540.0,1.0]
[1747048256753,0.59982156,104550.0,104540.0,1.0]
[1747048256962,1.06671081,104550.0,104540.0,1.0]
[1747048257183,0.82538156,104550.0,104540.0,1.0]
[1747048257844,1.07671081,104550.0,104540.0,1.0]
[1747048258070,0.83538156,104550.0,104540.0,1.0]
[1747048262499,1.54938169,104550.0,104540.0,1.0]
[1747048262690,1.53938169,104550.0,104540.0,1.0]
[1747048262884,2.17251736,104550.0,104540.0,1.0]
[1747048263415,2.20396245,104550.0,104540.0,0.9574]
[1747048263682,2.20096245,104550.0,104540.0,0.9574]
[1747048264095,2.20496245,104550.0,104540.0,0.9574]
[1747048264535,2.20096245,104550.0,104540.0,0.9574]
[1747048264749,2.19796245,104550.0,104540.0,0.9574]
[1747048264959,2.20696245,104550.0,104540.0,0.9584]
[1747048265154,1.86210306,104550.0,104540.0,0.9594]
[1747048265357,0.75084974,104550.0,104540.0,0.9594]
[1747048265568,0.87623814,104550.0,104540.0,0.9584]
[1747048265770,0.86623814,104550.0,104540.0,0.9584]
[1747048265949,1.20623814,104550.0,104540.0,0.9584]
[1747048266197,1.20623814,104550.0,104540.0,0.9594]
[1747048266409,1.21423814,104550.0,104540.0,0.9594]
[1747048267217,0.98863814,104550.0,104540.0,0.9594]
[1747048267426,1.21323814,104550.0,104540.0,0.9594]
[1747048267840,1.27608078,104550.0,104540.0,0.9594]
[1747048268516,1.21323814,104550.0,104540.0,0.9594]
[1747048275786,1.21311814,104550.0,104540.0,0.9594]
[1747048277057,1.27053814,104550.0,104540.0,0.9594]
[1747048277230,1.21311814,104550.0,104540.0,0.9594]
[1747048277743,1.22896739,104550.0,104540.0,0.9594]
[1747048277955,1.29382279,104550.0,104540.0,0.9594]
[1747048278396,1.21311814,104550.0,104540.0,0.9594]
[1747048280370,1.22311814,104550.0,104540.0,0.9594]
[1747048280582,1.21311814,104550.0,104540.0,0.9594]
[1747048281407,1.20411814,104550.0,104540.0,0.9584]
[1747048281670,1.19611814,104550.0,104540.0,0.9574]
[1747048281827,1.20311814,104550.0,104540.0,0.9584]
[1747048282825,1.30597244,104550.0,104540.0,0.9594]
[1747048283029,1.21011814,104550.0,104540.0,0.9594]
[1747048287603,0.96878889,104550.0,104540.0,0.9594]
[1747048287756,1.21011814,104550.0,104540.0,0.9594]
[1747048290295,1.09735814,104550.0,104540.0,0.9594]
[1747048290531,1.18057814,104550.0,104540.0,0.9594]
[1747048291882,0.93924889,104550.0,104540.0,0.9594]
[1747048292100,0.92924889,104550.0,104540.0,0.9594]
[1747048292293,0.81652889,104550.0,104540.0,0.9594]
[1747048292481,0.92924889,104550.0,104540.0,0.9594]
[1747048292676,0.93924889,104550.0,104540.0,0.9594]
[1747048294532,1.18057814,104550.0,104540.0,0.9594]
[1747048296562,1.17057814,104550.0,104540.0,0.9594]
[1747048296972,1.18057814,104550.0,104540.0,0.9594]
[1747048300644,0.84832889,104550.0,104540.0,0.9594]
[1747048300848,0.80652889,104550.0,104540.0,1.0011]
[1747048301052,0.81652889,104550.0,104540.0,1.0011]
[1747048301254,0.80652889,104550.0,104540.0,1.0011]
[1747048301855,0.81652889,104550.0,104540.0,1.0011]
[1747048302333,0.80652889,104550.0,104540.0,1.0011]
[1747048302722,0.81652889,104550.0,104540.0,1.0011]
[1747048302928,0.80652889,104550.0,104540.0,1.0011]
[1747048303123,0.81652889,104550.0,104540.0,1.0011]
[1747048303330,0.80652889,104550.0,104540.0,1.0011]
[1747048305637,0.81652889,104550.0,104540.0,1.0011]
[1747048306219,0.80652889,104550.0,104540.0,1.0011]
[1747048307465,1.04785814,104550.0,104540.0,0.9594]
[1747048312411,0.80652889,104550.0,104540.0,0.9594]
[1747048313780,0.69380889,104550.0,104540.0,0.9594]
[1747048315021,0.69380889,104550.0,104540.0,0.9985]
[1747048315820,0.69380889,104550.0,104540.0,0.9594]
[1747048315821,0.93513814,104550.0,104540.0,0.9594]
[1747048316445,1.23776739,104550.0,104540.0,0.9594]
[1747048316824,1.24230824,104550.0,104540.0,0.9594]
[1747048321223,1.22629899,104550.0,104540.0,0.9594]
[1747048323431,0.93912889,104550.0,104540.0,0.9594]
[1747048323699,1.22155814,104550.0,104540.0,0.9594]
[1747048325893,1.55874169,104550.0,104540.0,0.9594]
[1747048326526,1.56328254,104550.0,104540.0,0.9594]
[1747048326798,1.46742824,104550.0,104540.0,0.9594]
[1747048327351,2.15585155,104550.0,104540.0,0.9594]
[1747048327570,2.14585155,104550.0,104540.0,0.9594]
[1747048327784,2.17457055,104550.0,104540.0,0.9594]
[1747048327993,2.1745766,104550.0,104540.0,0.9594]
[1747048328202,2.2704309,104550.0,104540.0,0.9594]
[1747048328616,2.2634309,104550.0,104540.0,0.9584]
[1747048328844,2.2564309,104550.0,104540.0,0.9574]
[1747048329028,3.07001193,104550.0,104540.0,0.9584]
[1747048329238,2.72935419,104550.0,104540.0,0.9594]
[1747048329443,2.56980319,104550.0,104540.0,0.9594]
[1747048330111,2.53785019,104550.0,104540.0,0.9594]
[1747048330931,2.47870519,104550.0,104540.0,0.9594]
[1747048331363,2.44738919,104550.0,104540.0,0.9594]
[1747048331573,2.33938819,104550.0,104540.0,0.9594]
[1747048332763,1.97201567,104550.0,104540.0,0.9594]
[1747048333364,1.94842085,104550.0,104540.0,0.9594]
[1747048340015,3.12542619,104550.0,104540.0,0.45121121]
[1747048340287,2.82542619,104550.0,104540.0,0.34096531]
[1747048340504,2.87542619,104550.0,104540.0,0.01421791]
[1747048340725,0.60604636,104510.0,104500.0,0.002]
[1747048340946,1.17850991,104510.0,104500.0,0.00248953]
[1747048341157,1.17850991,104510.0,104500.0,0.04348953]
[1747048341158,0.65635981,104510.0,104500.0,0.04348953]
[1747048341374,0.88163981,104510.0,104500.0,0.04348953]
[1747048341631,0.89768906,104510.0,104500.0,0.04348953]
[1747048341827,1.13968768,104510.0,104500.0,0.04348953]
[1747048342266,1.13968768,104510.0,104500.0,0.00348953]
[1747048342267,1.14668768,104510.0,104500.0,0.00348953]
[1747048342484,0.21058611,104470.0,104460.0,0.27803582]
[1747048343762,0.21058611,104470.0,104460.0,0.2780847]
[1747048344196,0.21158611,104470.0,104460.0,0.2820847]
[1747048344850,0.21358611,104470.0,104460.0,0.2820847]
[1747048345467,0.21358611,104470.0,104460.0,0.3233847]
[1747048349396,0.21334316,104470.0,104460.0,0.3233847]
[1747048350954,0.21334316,104470.0,104460.0,0.18393109]
[1747048351182,0.21334316,104470.0,104460.0,0.42526034]
[1747048352651,0.21334316,104470.0,104460.0,0.31262034]
[1747048353497,0.21334316,104470.0,104460.0,0.55394959]
[1747048354425,0.30919746,104470.0,104460.0,0.04534888]
[1747048354618,0.30919746,104470.0,104460.0,0.28667813]
[1747048355067,0.30919746,104470.0,104460.0,0.31258685]
[1747048356162,0.30919746,104470.0,104460.0,0.5539161]
[1747048358817,0.30919746,104470.0,104460.0,0.0712576]
[1747048359052,0.30919746,104470.0,104460.0,0.5539161]
[1747048359623,0.30919746,104470.0,104460.0,0.31258685]
[1747048361784,0.30919746,104470.0,104460.0,0.5539161]
[1747048362477,0.21334316,104470.0,104460.0,0.5539161]
[1747048365324,0.21334316,104470.0,104460.0,0.31258685]
[1747048367351,0.21334316,104470.0,104460.0,0.22995593]
[1747048368282,0.21334316,104470.0,104460.0,0.0712576]
[1747048368495,0.21334316,104470.0,104460.0,0.22995593]
[1747048370588,0.21334316,104470.0,104460.0,0.72865426]
[1747048371245,0.21334316,104470.0,104460.0,0.56995593]
[1747048376929,0.21334316,104470.0,104460.0,0.3699576]
[1747048377131,0.21334316,104470.0,104460.0,0.4140576]
[1747048377342,0.21334316,104470.0,104460.0,0.57275593]
[1747048378868,0.21334316,104470.0,104460.0,0.3919576]
[1747048379086,0.21334316,104470.0,104460.0,0.3699576]
[1747048379693,0.35499746,104470.0,104460.0,0.3699576]
[1747048379932,0.35499746,104470.0,104460.0,0.00404888]
[1747048382472,0.5902618,104470.0,104460.0,0.00404888]
[1747048382683,1.19637568,104470.0,104460.0,0.00404888]
[1747048382888,1.22737899,104470.0,104460.0,0.00404888]
[1747048383105,1.23737899,104470.0,104460.0,0.00404888]
[1747048383332,1.23637899,104470.0,104460.0,4.888e-05]
[1747048383562,1.16586533,104470.0,104460.0,4.888e-05]
[1747048383779,1.16686533,104470.0,104460.0,0.00304888]
[1747048384002,1.13386202,104470.0,104460.0,0.00304888]
[1747048384184,1.13486202,104470.0,104460.0,0.00304888]
[1747048384981,0.84345935,104470.0,104460.0,0.00304888]
[1747048385187,1.00215768,104470.0,104460.0,0.00304888]
[1747048385388,1.08445264,104470.0,104460.0,4.888e-05]
[1747048385770,1.09545264,104470.0,104460.0,0.00204888]
[1747048386166,1.19130694,104470.0,104460.0,0.00204888]
[1747048386614,1.09545264,104470.0,104460.0,0.00204888]
[1747048388730,1.08545264,104470.0,104460.0,0.00204888]
[1747048388958,0.85345935,104470.0,104460.0,0.00204888]
[1747048389165,1.09545264,104470.0,104460.0,0.00204888]
[1747048389843,1.08545264,104470.0,104460.0,0.00204888]
[1747048390044,1.09545264,104470.0,104460.0,0.00204888]
[1747048391867,1.46884439,104470.0,104460.0,0.00204888]